lending/lending_fUSD_20251111
["ID","MTS","AMOUNT","RATE_DAILY","PERIOD"]
[393619385,1762857055798,-500.0,0.00039751,2]
[393619386,1762857055807,-500.0,0.00039751,2]
[393619387,1762857055816,-500.0,0.00039751,2]
[393619388,1762857055825,-500.0,0.00039751,2]
[393619389,1762857055834,-500.0,0.00039751,2]
[393619390,1762857055844,-298.98842692,0.00039751,2]
[393619391,1762857055853,-990.0,0.00039754,120]
[393619392,1762857055862,-155.370367,0.00039754,60]
[393619393,1762857055872,-154.98691858,0.00039761,15]
[393619394,1762857055882,-335.41125028,0.00039761,8]
[393619395,1762857055891,-201.69772874,0.00039761,2]
[393619396,1762857055901,-191.57459815,0.00039761,2]
[393619397,1762857055910,-5154.89989462,0.00039761,2]
[393619398,1762857055920,-232.0482225,0.00039761,12]
[393619399,1762857055929,-150.0,0.00039763,7]
[393619400,1762857055939,-2000.0,0.00039764,2]
[393619401,1762857055948,-2000.0,0.00039764,2]
[393619402,1762857055958,-170.45954845,0.00039765,7]
[393619403,1762857055967,-150.0,0.00039765,2]
[393619404,1762857055976,-854.50952725,0.00039765,2]
[393619405,1762857055986,-150.0,0.00039765,2]
[393619406,1762857055995,-42274.2204564,0.00039765,2]
[393619407,1762857056005,-150.0,0.00039765,2]
[393619408,1762857056014,-1422.77853606,0.00039765,2]
[393619409,1762857056024,-459.02,0.00039765,120]
[393619410,1762857056034,-500.0,0.00039765,7]
[393619411,1762857056047,-500.0,0.00039765,7]
[393619412,1762857056057,-400.0,0.0003977,2]
[393619413,1762857056066,-400.0,0.0003977,2]
[393619414,1762857056075,-400.0,0.0003977,2]
[393619415,1762857056086,-700.0,0.0003977,2]
[393619416,1762857056096,-700.0,0.0003977,2]
[393619417,1762857056105,-700.0,0.0003977,2]
[393619418,1762857056115,-1004.5997,0.00039772,2]
[393619419,1762857056126,-501.0816036,0.00039773,5]
[393619420,1762857056136,-158.942975,0.00039777,60]
[393619421,1762857056145,-151.534927,0.00039777,60]
[393619422,1762857056155,-155.370367,0.00039777,60]
[393619423,1762857056164,-162.622595,0.00039796,2]
[393619424,1762857056173,-163.850523,0.00039796,2]
[393619425,1762857056183,-169.925088,0.00039796,2]
[393619426,1762857056192,-163.730416,0.00039796,2]
[393619427,1762857056201,-156.164658,0.00039796,2]
[393619428,1762857056211,-161.833418,0.00039796,2]
[393619429,1762857056220,-163.850523,0.00039796,2]
[393619430,1762857056229,-160.603281,0.00039796,2]
[393619431,1762857056239,-151.534927,0.00039796,2]
[393619432,1762857056249,-158.942975,0.00039796,2]
[393619433,1762857056258,-155.370367,0.00039796,2]
[393619434,1762857056270,-674.15,0.00039798,30]
[393619435,1762857056281,-169.925088,0.000398,29]
[393619436,1762857056290,-163.730416,0.000398,29]
[393619437,1762857056300,-156.164658,0.000398,29]
[393619438,1762857056310,-250.0,0.000398,14]
[393619439,1762857056320,-250.0,0.000398,14]
[393619440,1762857056330,-250.0,0.000398,14]
[393619441,1762857056340,-250.0,0.000398,14]
[393619442,1762857056349,-250.0,0.000398,14]
[393619443,1762857056359,-250.0,0.000398,14]
[393619444,1762857056368,-250.0,0.000398,14]
[393619445,1762857056377,-250.0,0.000398,14]
[393619446,1762857056386,-250.0,0.000398,14]
[393619447,1762857056395,-250.0,0.000398,14]
[393619448,1762857056405,-250.0,0.000398,14]
[393619449,1762857056415,-250.0,0.000398,14]
[393619450,1762857056424,-250.0,0.000398,14]
[393619451,1762857056433,-250.0,0.000398,14]
[393619452,1762857056443,-250.0,0.000398,14]
[393619453,1762857056452,-250.0,0.000398,14]
[393619454,1762857056462,-250.0,0.000398,14]
[393619455,1762857056472,-250.0,0.000398,14]
[393619456,1762857056481,-250.0,0.000398,14]
[393619457,1762857056491,-250.0,0.000398,14]
[393619458,1762857056501,-250.0,0.000398,14]
[393619459,1762857056511,-250.0,0.000398,14]
[393619460,1762857056520,-250.0,0.000398,14]
[393619461,1762857056530,-163.850523,0.000398,60]
[393619462,1762857056540,-160.603281,0.000398,60]
[393619463,1762857056549,-158.942975,0.000398,60]
[393619464,1762857056559,-151.534927,0.000398,60]
[393619465,1762857056568,-155.370367,0.000398,60]
[393619466,1762857056577,-3216.89182114,0.000398,120]
[393619467,1762857056586,-1401.0,0.000398,7]
[393619468,1762857056595,-723.0,0.000398,14]
[393619469,1762857056604,-150.0,0.00039818,41]
[393619470,1762857056613,-297.73222323,0.00039818,41]
[393619471,1762857056622,-500.0,0.00039818,41]
[393619472,1762857056632,-500.0,0.00039818,41]
[393619473,1762857056641,-150.0,0.00039818,41]
[393619474,1762857056650,-500.0,0.00039818,41]
[393619475,1762857056659,-150.0,0.00039818,41]
[393619476,1762857056669,-150.0,0.00039818,41]
[393619477,1762857056678,-500.0,0.00039818,41]
[393619478,1762857056687,-150.0,0.00039818,41]
[393619479,1762857056696,-500.0,0.00039818,41]
[393619480,1762857056706,-150.0,0.00039818,41]
[393619481,1762857056716,-150.0,0.00039818,41]
[393619482,1762857056725,-500.0,0.00039818,41]
[393619483,1762857056735,-500.0,0.00039818,23]
[393619484,1762857056744,-150.0,0.00039818,41]
[393619485,1762857056753,-150.0,0.00039818,41]
[393619486,1762857056762,-152.82438448,0.00039818,41]
[393619487,1762857056772,-154.09491717,0.00039818,41]
[393619488,1762857056781,-150.0,0.00039818,41]
[393619489,1762857056791,-152.54607506,0.00039818,41]
[393619490,1762857056800,-150.0,0.00039818,41]
[393619491,1762857056810,-151.18385876,0.00039818,41]
[393619492,1762857056819,-212.23433046,0.00039818,41]
[393619493,1762857056828,-150.0,0.00039818,41]
[393619494,1762857056837,-150.0,0.00039818,41]
[393619495,1762857056847,-150.0,0.00039818,41]
[393619496,1762857056856,-150.0,0.00039818,41]
[393619497,1762857056866,-500.0,0.00039818,41]
[393619498,1762857056876,-500.0,0.00039818,2]
[393619499,1762857056885,-152.81423976,0.00039818,41]
[393619500,1762857056895,-500.0,0.00039818,2]
[393619501,1762857056904,-500.0,0.00039818,41]
[393619502,1762857056914,-500.0,0.00039818,41]
[393619503,1762857056924,-150.0,0.00039818,41]
[393619504,1762857056933,-150.0,0.00039818,41]
[393619505,1762857056943,-500.0,0.00039818,41]
[393619506,1762857056952,-150.0,0.00039818,41]
[393619507,1762857056961,-500.0,0.00039818,41]
[393619508,1762857056971,-500.0,0.00039818,41]
[393619509,1762857056980,-2457.29070827,0.00039822,2]
[393619510,1762857056990,-5155.78901987,0.00039861,29]
[393619511,1762857057001,-234.39226363,0.00039861,31]
[393619512,1762857057010,-151.0,0.00039861,120]
[393619513,1762857057020,-151.0,0.00039861,120]
[393619514,1762857057029,-151.0,0.00039861,120]
[393619515,1762857057038,-151.0,0.00039861,120]
[393619516,1762857057049,-151.612033,0.00039861,120]
[393619517,1762857057059,-151.0,0.00039861,120]
[393619518,1762857057068,-151.0,0.00039861,120]
[393619519,1762857057077,-151.0,0.00039861,120]
[393619520,1762857057086,-151.0,0.00039861,120]
[393619521,1762857057098,-151.0,0.00039861,120]
[393619522,1762857057107,-151.0,0.00039861,120]
[393619523,1762857057116,-151.0,0.00039861,120]
[393619524,1762857057127,-151.0,0.00039861,120]
[393619525,1762857057136,-151.0,0.00039861,120]
[393619526,1762857057145,-198.31433,0.00039861,120]
[393619527,1762857057155,-151.0,0.00039861,120]
[393619528,1762857057164,-151.0,0.00039861,120]
[393619529,1762857057173,-151.0,0.00039861,120]
[393619530,1762857057183,-151.0,0.00039861,120]
[393619531,1762857057192,-151.0,0.00039861,120]
[393619532,1762857057202,-151.0,0.00039861,120]
[393619533,1762857057211,-151.0,0.00039861,120]
[393619534,1762857057220,-151.0,0.00039861,120]
[393619535,1762857057229,-151.0,0.00039861,120]
[393619536,1762857057239,-151.0,0.00039861,120]
[393619537,1762857057248,-278.365642,0.00039861,120]
[393619538,1762857057258,-151.0,0.00039861,120]
[393619539,1762857057267,-151.0,0.00039861,120]
[393619540,1762857057276,-252.173088,0.00039861,120]
[393619541,1762857057287,-151.0,0.00039861,30]
[393619542,1762857057297,-151.0,0.00039861,30]
[393619543,1762857057429,-151.0,0.00039861,60]
[393619544,1762857057438,-151.0,0.00039861,30]
[393619545,1762857057447,-151.0,0.00039861,30]
[393619546,1762857057456,-151.0,0.00039861,30]
[393619547,1762857057465,-180.246269,0.00039861,30]
[393619548,1762857057476,-1541476.44771627,0.00039861,7]
[393619549,1762857057486,-500.0,0.00039861,16]
[393619550,1762857057495,-500.0,0.00039861,16]
[393619551,1762857057504,-500.0,0.00039861,16]
[393619552,1762857057514,-500.0,0.00039861,16]
[393619553,1762857057524,-500.0,0.00039861,16]
[393619554,1762857057535,-525.00673945,0.00039861,16]
[393619555,1762857057546,-500.0,0.00039861,5]
[393619556,1762857057555,-500.0,0.00039861,5]
[393619557,1762857057564,-500.0,0.00039861,5]
[393619558,1762857057576,-500.0,0.00039861,5]
[393619559,1762857057587,-500.0,0.00039861,5]
[393619560,1762857057598,-500.0,0.00039861,5]
[393619561,1762857057607,-500.0,0.00039861,5]
[393619562,1762857057618,-500.0,0.00039861,5]
[393619563,1762857057627,-359.09034342,0.00039861,5]
[393619564,1762857057638,-500.0,0.00039861,2]
[393619565,1762857057648,-500.0,0.00039861,2]
[393619566,1762857057658,-500.0,0.00039861,2]
[393619567,1762857057667,-500.0,0.00039861,2]
[393619568,1762857057677,-500.0,0.00039861,2]
[393619569,1762857057687,-600.0,0.00039861,2]
[393619570,1762857057697,-500.0,0.00039861,3]
[393619571,1762857057709,-500.0,0.00039861,3]
[393619572,1762857057720,-500.0,0.00039861,3]
[393619573,1762857057730,-500.0,0.00039861,3]
[393619574,1762857057740,-500.0,0.00039861,3]
[393619575,1762857057750,-522.91876279,0.00039861,3]
[393619576,1762857057760,-10605.66,0.00039861,14]
[393619577,1762857057769,-10605.66,0.00039861,14]
[393619578,1762857057780,-10605.66,0.00039861,14]
[393619579,1762857057790,-10605.66,0.00039861,14]
[393619580,1762857057799,-10605.66,0.00039861,14]
[393619581,1762857057809,-10605.66,0.00039861,14]
[393619582,1762857057818,-10605.66,0.00039861,14]
[393619583,1762857057828,-10605.66,0.00039861,14]
[393619584,1762857057838,-10605.66,0.00039861,14]
[393619585,1762857057847,-10605.66,0.00039861,14]
[393619586,1762857057856,-10605.66,0.00039861,14]
[393619587,1762857057866,-10605.66,0.00039861,14]
[393619588,1762857057876,-10605.66,0.00039861,14]
[393619589,1762857057885,-10605.66,0.00039861,14]
[393619590,1762857057895,-10605.66,0.00039861,14]
[393619591,1762857057904,-10605.66,0.00039861,14]
[393619592,1762857057914,-10605.66,0.00039861,14]
[393619593,1762857057923,-10605.66,0.00039861,14]
[393619594,1762857057932,-10605.66,0.00039861,14]
[393619595,1762857057942,-10605.66,0.00039861,14]
[393619596,1762857057953,-10605.66,0.00039861,14]
[393619597,1762857057963,-10605.66,0.00039861,14]
[393619598,1762857057972,-10605.66,0.00039861,14]
[393619599,1762857057982,-10605.81542601,0.00039861,14]
[393619600,1762857057992,-500.0,0.00039861,10]
[393619601,1762857058002,-500.0,0.00039861,10]
[393619602,1762857058012,-500.0,0.00039861,10]
[393619603,1762857058021,-500.0,0.00039861,10]
[393619604,1762857058031,-500.0,0.00039861,10]
[393619605,1762857058041,-500.0,0.00039861,10]
[393619606,1762857058054,-500.0,0.00039861,10]
[393619607,1762857058064,-500.0,0.00039861,10]
[393619608,1762857058073,-500.0,0.00039861,10]
[393619609,1762857058083,-500.0,0.00039861,10]
[393619610,1762857058094,-500.0,0.00039861,10]
[393619611,1762857058103,-500.0,0.00039861,10]
[393619612,1762857058114,-500.0,0.00039861,10]
[393619613,1762857058123,-309.3929071,0.00039861,10]
[393619614,1762857058133,-1709349.72631346,0.00039861,7]
[393619615,1762857058288,-1380.94,0.00039861,7]
[393619616,1762857058299,-7366.79193581,0.00039861,7]
[393619617,1762857058315,-500.0,0.00038356,2]
[393619618,1762857058324,-168.31952144,0.00039861,7]
[393619619,1762857058335,-4141.776292,0.00039861,7]
[393619620,1762857058346,-619.3089963,0.00039861,7]
[393619621,1762857058358,-7477.4,0.00039861,7]
[393619622,1762857058369,-1476.42,0.00039861,7]
[393619623,1762857058381,-499.98868071,0.00039861,7]
[393619624,1762857058392,-4836.73334981,0.00039861,7]
[393619625,1762857058403,-351.88118535,0.00039861,7]
[393619626,1762857058417,-602.339,0.00039751,120]
[393619627,1762857058427,-5492.62341946,0.00039861,7]
[393619628,1762857058438,-1120.43290127,0.00039861,7]
[393619629,1762857058455,-500.0,0.00038356,2]
[393619630,1762857058464,-10825.73539457,0.00039861,7]
[393619631,1762857058475,-478.37891291,0.00039861,7]
[393619632,1762857058794,-500.0,0.00038356,2]
[393619633,1762857058803,-500.0,0.00038356,2]
[393619634,1762857058812,-500.0,0.00038356,2]
[393619635,1762857058822,-500.0,0.00038356,2]
[393619636,1762857058831,-500.0,0.00038356,2]
[393619637,1762857058841,-538.13671702,0.00038356,2]
[393619638,1762857058850,-1000.0,0.00038428,7]
[393619639,1762857058859,-10007.0356859,0.00039861,7]
[393619640,1762857058873,-23015.27683317,0.00039861,7]
[393619641,1762857058886,-2483.48278472,0.00039861,7]
[393619642,1762857058900,-16495.33945241,0.00039861,7]
[393619643,1762857058910,-460933.14715864,0.00039861,7]
[393619644,1762857058991,-1161.64851535,0.00039399,2]
[393619645,1762857059000,-235441.86570576,0.00039861,7]
[393619646,1762857059011,-50817.105491,0.00039861,7]
[393619647,1762857059022,-4012.1106964,0.00039861,7]
[393619648,1762857059063,-2352.68519998,0.00039566,14]
[393619649,1762857059073,-147.31480002,0.00039566,14]
[393619650,1762857059082,-13711845.87868138,0.00039861,7]
[393619651,1762857059095,-5406760.93296395,0.00039861,7]
[393619652,1762857059105,-50364.50809588,0.00039861,7]
[393619658,1762857438546,150.0,0.0001439,2]
[393619659,1762857438662,620.96472934,0.00014455,2]
[393619660,1762857438709,728.29196651,0.0001452,2]
[393619661,1762857438802,835.61920368,0.00014586,2]
[393619662,1762857438834,942.94644084,0.00014651,2]
[393619663,1762857438871,1050.27367801,0.00014716,2]
[393619664,1762857438957,1157.60091518,0.00014782,2]
[393619665,1762857439001,1372.25538952,0.00014912,2]
[393619666,1762857439051,1479.58262669,0.00014978,2]
[393619667,1762857439081,1264.92815235,0.00014847,2]
[393619668,1762857455473,-1586.90986386,0.00015043,2]
[393619669,1762857455496,-1694.23710103,0.00015108,2]
[393619670,1762857455519,-500.0,0.00015142,2]
[393619671,1762857455542,-1801.5643382,0.00015174,2]
[393619672,1762857455565,-1908.89157537,0.00015239,2]
[393619673,1762857455588,-2016.21881254,0.00015304,2]
[393619674,1762857455613,-250.0,0.00015349,2]
[393619675,1762857455638,-2123.54604971,0.0001537,2]
[393619676,1762857455664,-2230.87328688,0.00015435,2]
[393619677,1762857455688,-2338.20052405,0.000155,2]
[393619678,1762857455714,-250.0,0.00015507,2]
[393619679,1762857455737,-1200.0,0.00015556,2]
[393619680,1762857455760,-300.0,0.00015556,2]
[393619681,1762857455783,-7321.90756316,0.00015557,2]
[393619682,1762857455806,-2313.45079027,0.00015557,2]
[393619683,1762857455829,-206.17784985,0.00015557,2]
[393619684,1762857455853,-2445.52776122,0.00015566,2]
[393619685,1762857455876,-2552.85499838,0.00015631,2]
[393619686,1762857455901,-300.0,0.00015639,2]
[393619687,1762857455926,-194.73816335,0.0001564,2]
[393619688,1762857455951,-160.64961763,0.0001564,2]
[393619689,1762857455975,-596.3544726,0.0001564,2]
[393619690,1762857456002,-332.84386112,0.0001564,2]
[393619691,1762857456031,-500.0,0.0001564,2]
[393619692,1762857456058,-608.80132706,0.0001564,2]
[393619693,1762857456084,-500.0,0.0001564,2]
[393619694,1762857456111,-500.0,0.0001564,2]
[393619695,1762857456138,-500.0,0.0001564,2]
[393619696,1762857456164,-500.0,0.0001564,2]
[393619697,1762857456196,-500.0,0.0001564,2]
[393619698,1762857456225,-500.0,0.0001564,2]
[393619699,1762857456251,-11266.25204372,0.00015641,2]
[393619700,1762857462250,-50000.0,0.00015641,2]
[393619701,1762857473026,-4000.0,0.00015641,2]
[393619702,1762857484897,-1400.0,0.00015641,2]
[393619704,1762857740962,150.0,0.0001439,2]
[393619705,1762857741086,630.71770941,0.00014455,2]
[393619706,1762857741121,739.73064684,0.0001452,2]
[393619707,1762857741212,848.74358427,0.00014586,2]
[393619708,1762857741254,957.7565217,0.00014651,2]
[393619709,1762857741292,188.25806869,0.00014716,2]
[393619710,1762857741324,878.51139043,0.00014716,2]
[393619711,1762857741387,1175.78239655,0.00014782,2]
[393619712,1762857741421,1393.80827141,0.00014912,2]
[393619713,1762857741458,1284.79533398,0.00014847,2]
[393619717,1762857836154,-1502.82120884,0.00014978,2]
[393619720,1762858045266,150.0,0.0001439,2]
[393619721,1762858045385,623.24545554,0.00014455,2]
[393619722,1762858045454,730.9668923,0.0001452,2]
[393619723,1762858045532,838.68832906,0.00014586,2]
[393619724,1762858045566,946.40976582,0.00014651,2]
[393619725,1762858045631,1161.85263933,0.00014782,2]
[393619726,1762858045686,1377.29551285,0.00014912,2]
[393619727,1762858045742,1054.13120258,0.00014716,2]
[393619728,1762858045777,111.77778484,0.00014978,2]
[393619729,1762858045797,1373.23916477,0.00014978,2]
[393619730,1762858046092,1269.57407609,0.00014847,2]
[393619761,1762858231962,-396.09815507,0.00015043,2]
[393619763,1762858231973,-1196.6402313,0.00015043,2]
[393619765,1762858231982,-250.0,0.00015059,2]
[393619767,1762858231991,-1700.45982313,0.00015108,2]
[393619770,1762858232000,-1808.18125989,0.00015174,2]
[393619773,1762858232009,-1915.90269665,0.00015239,2]
[393619775,1762858232019,-328.14388006,0.00015304,2]
[393619779,1762858232118,-250.0,0.00015304,2]
[393619780,1762858232174,-576.88174643,0.00015304,2]
[393619781,1762858232227,-868.59850692,0.00015304,2]
[393619782,1762858232236,-2131.34557017,0.0001537,2]
[393619783,1762858232246,-2239.06700693,0.00015435,2]
[393619784,1762858232255,-2346.78844369,0.000155,2]
[393619785,1762858232264,-12334.3327,0.00015541,2]
[393619786,1762858232274,-2454.50988045,0.00015566,2]
[393619787,1762858232283,-1521.01948173,0.00015573,2]
[393619788,1762858232297,-530.77777805,0.00015573,2]
[393619791,1762858237952,-1388.79531409,0.00015573,2]
[393619792,1762858237961,-6810.61605913,0.00015573,2]
[393619793,1762858237971,-201.69772874,0.00015573,2]
[393619795,1762858237980,-180.58238421,0.00015573,2]
[393619797,1762858237990,-752.75,0.00015631,3]
[393619798,1762858237999,-2562.23131721,0.00015631,2]
[393619800,1762858238009,-250.0,0.00015631,2]
[393619801,1762858238018,-151.0,0.00015632,2]
[393619802,1762858238028,-151.0,0.00015632,2]
[393619803,1762858238038,-151.0,0.00015632,2]
[393619804,1762858238047,-151.0,0.00015632,2]
[393619805,1762858238057,-151.0,0.00015632,2]
[393619806,1762858238067,-151.0,0.00015632,2]
[393619807,1762858238076,-151.0,0.00015632,2]
[393619808,1762858238086,-151.0,0.00015632,2]
[393619809,1762858238096,-151.0,0.00015632,2]
[393619810,1762858238106,-151.0,0.00015632,2]
[393619811,1762858238116,-151.0,0.00015632,2]
[393619812,1762858238127,-151.0,0.00015632,2]
[393619813,1762858238137,-151.0,0.00015632,2]
[393619814,1762858238147,-151.0,0.00015632,2]
[393619815,1762858238158,-151.0,0.00015632,2]
[393619816,1762858238168,-151.0,0.00015632,2]
[393619817,1762858238178,-151.0,0.00015632,2]
[393619818,1762858238188,-151.0,0.00015632,2]
[393619819,1762858238198,-151.0,0.00015632,2]
[393619820,1762858238208,-151.0,0.00015632,2]
[393619822,1762858238218,-500.0,0.0001564,2]
[393619824,1762858238228,-500.0,0.0001564,2]
[393619826,1762858238237,-500.0,0.0001564,2]
[393619827,1762858238246,-353333.74795628,0.00015641,2]
[393619828,1762858238257,-500.0,0.00015673,2]
[393619829,1762858238267,-500.0,0.00015673,2]
[393619831,1762858238278,-501.0816036,0.00015673,2]
[393619832,1762858238288,-1852.42,0.0001578,2]
[393619833,1762858238299,-1754.96,0.00015998,2]
[393619834,1762858238309,-166.66,0.0001609,2]
[393619835,1762858238319,-311.72007248,0.00016438,2]
[393619836,1762858238330,-354.02964418,0.00016438,2]
[393619837,1762858238339,-360.25945563,0.00016547,4]
[393619838,1762858238350,-250.0,0.00016547,2]
[393619839,1762858238359,-250.0,0.00016547,2]
[393619840,1762858238371,-166.66,0.00016621,2]
[393619841,1762858238381,-443.73507614,0.00016672,2]
[393619842,1762858238390,-500.0,0.00016672,2]
[393619843,1762858238399,-500.0,0.00016672,2]
[393619844,1762858238409,-500.0,0.00016672,2]
[393619845,1762858238422,-157.54260659,0.00016672,2]
[393619846,1762858238431,-500.0,0.00016672,2]
[393619847,1762858238441,-500.0,0.00016672,2]
[393619848,1762858238450,-263.19217509,0.00016672,2]
[393619849,1762858238462,-500.0,0.00016672,2]
[393619850,1762858238472,-500.0,0.00016672,2]
[393619851,1762858238481,-191.89,0.00016712,2]
[393619852,1762858238492,-166.66,0.00017152,2]
[393619853,1762858238501,-172.56994193,0.00017506,2]
[393619854,1762858238514,-166.66,0.00017683,2]
[393619855,1762858238525,-179.54679155,0.00017999,2]
[393619856,1762858238535,-166.66,0.00018214,2]
[393619857,1762858238544,-3440.59257387,0.00018259,2]
[393619858,1762858238555,-6810.61605906,0.00018259,2]
[393619859,1762858238564,-1590.95,0.00018533,2]
[393619860,1762858238573,-9999.99,0.00018533,2]
[393619861,1762858238583,-1281.66,0.00018533,2]
[393619862,1762858238593,-1187.22,0.00018533,2]
[393619863,1762858238602,-1361.71,0.00018533,2]
[393619864,1762858238612,-999.99,0.00018533,2]
[393619865,1762858238621,-1453.18,0.00018533,2]
[393619866,1762858238631,-9999.99,0.00018533,2]
[393619867,1762858238640,-40202.13,0.00018533,2]
[393619868,1762858238650,-44551.44,0.00018533,2]
[393619869,1762858238660,-1720.59,0.00018533,2]
[393619870,1762858238670,-299.99,0.00018533,4]
[393619871,1762858238679,-9999.99,0.00018533,2]
[393619872,1762858238688,-8307.34,0.00018533,2]
[393619873,1762858238698,-499.99,0.00018533,2]
[393619874,1762858238708,-150.99,0.00018533,2]
[393619875,1762858238717,-6448.65,0.00018533,2]
[393619876,1762858238726,-3577.32,0.00018533,2]
[393619877,1762858238736,-3643.29,0.00018533,2]
[393619878,1762858238746,-9999.99,0.00018533,2]
[393619879,1762858238756,-150.99,0.00018533,2]
[393619880,1762858238766,-500.28399044,0.00018573,2]
[393619881,1762858238775,-166.66,0.00018745,2]
[393619882,1762858238785,-500.0,0.00019178,2]
[393619883,1762858238795,-628.14,0.00019178,2]
[393619884,1762858238805,-500.0,0.00019178,2]
[393619885,1762858238814,-249.90471051,0.00019338,2]
[393619886,1762858238824,-500.0,0.00019338,2]
[393619887,1762858238835,-299.67,0.00019339,2]
[393619888,1762858238845,-500.0,0.00019373,2]
[393619889,1762858238854,-500.0,0.00019373,2]
[393619890,1762858238863,-500.0,0.00019373,2]
[393619891,1762858238873,-299.67,0.00019613,2]
[393619892,1762858238883,-299.67,0.00019887,2]
[393619893,1762858238892,-500.0,0.00019921,2]
[393619894,1762858238902,-1000.0,0.00019921,2]
[393619895,1762858238911,-500.0,0.00019921,2]
[393619896,1762858238920,-299.67,0.00020161,2]
[393619897,1762858238930,-299.71,0.00020435,2]
[393619898,1762858238940,-13275.35,0.00020575,2]
[393619899,1762858238949,-3440.59257387,0.00020945,2]
[393619900,1762858238958,-6810.61605906,0.00020945,2]
[393619901,1762858238968,-61573.52,0.00021351,2]
[393619902,1762858238978,-3668.22,0.00021918,2]
[393619903,1762858239178,-3440.59257387,0.00023632,2]
[393619904,1762858239188,-6810.61605906,0.00023632,2]
[393619905,1762858239198,-1000.0,0.00024658,2]
[393619906,1762858239208,-166100.751737,0.000248,3]
[393619907,1762858239217,-1800.0,0.000249,9]
[393619908,1762858239227,-29436.3428827,0.000249,3]
[393619909,1762858239236,-154.118764,0.00025984,2]
[393619910,1762858239246,-157.332354,0.00025984,2]
[393619911,1762858239256,-6920.86465569,0.00026308,3]
[393619912,1762858239265,-3440.59257387,0.00026318,2]
[393619913,1762858239275,-6810.61605906,0.00026318,2]
[393619914,1762858239284,-9812.11429424,0.00026565,3]
[393619915,1762858239293,-1209.29,0.00026575,2]
[393619916,1762858239303,-157.37,0.00027397,80]
[393619917,1762858239312,-177.73,0.00028111,2]
[393619918,1762858239321,-1161.06,0.00028601,2]
[393619919,1762858239330,-154.118764,0.00028675,3]
[393619920,1762858239339,-157.332354,0.00028675,3]
[393619921,1762858239348,-3440.59257387,0.00029004,2]
[393619922,1762858239357,-6810.61605906,0.00029004,2]
[393619923,1762858239368,-150.0,0.00029904,2]
[393619924,1762858239383,-162.054811,0.00030618,2]
[393619925,1762858239392,-154.118764,0.00030618,2]
[393619926,1762858239402,-157.332354,0.00030618,2]
[393619927,1762858239413,-6920.86465569,0.0003168,3]
[393619928,1762858239423,-3440.59257387,0.0003169,2]
[393619929,1762858239432,-6810.61605906,0.0003169,2]
[393619930,1762858239441,-162.054811,0.0003245,3]
[393619931,1762858239451,-154.118764,0.0003245,3]
[393619932,1762858239462,-157.332354,0.0003245,3]
[393619933,1762858239470,-1601.485,0.0003267,33]
[393619934,1762858239479,-182.369,0.0003267,33]
[393619935,1762858239488,-162.0,0.00033,14]
[393619936,1762858239497,-5515.0,0.000334,5]
[393619937,1762858239505,-152.0,0.00033532,3]
[393619938,1762858239512,-9812.11429424,0.00034366,3]
[393619939,1762858239521,-3440.59257387,0.00034377,2]
[393619940,1762858239530,-6810.61605906,0.00034377,2]
[393619941,1762858239540,-162.0,0.00034521,30]
[393619942,1762858239549,-500.0,0.00034669,7]
[393619943,1762858239558,-500.0,0.00034729,7]
[393619944,1762858239568,-500.0,0.00034757,2]
[393619945,1762858239577,-6920.86465569,0.00034854,3]